[Event "Late-Titled-Tuesday-Blitz-April-16-2024"]
[Site "Chess.com"]
[Date "2024.04.16"]
[Round "1"]
[White "GameOverBro"]
[Black "zano2023"]
[Result "1-0"]
[WhiteElo "2552"]
[BlackElo "2156"]
[TimeControl "180+1"]
[EndTime "14:04:26 PDT"]
[Termination "GameOverBro won by resignation"]

1. e4 {[%clk 0:02:59.6]} 1... d6 {[%clk 0:02:59.4]} 2. d4 {[%clk 0:02:59.4]}
2... Nf6 {[%clk 0:02:59.6]} 3. Nc3 {[%clk 0:02:59.3]} 3... c6 {[%clk 0:02:59.4]}
4. h3 {[%clk 0:02:57.9]} 4... Qc7 {[%clk 0:02:55.9]} 5. Nf3 {[%clk 0:02:58.2]}
5... e5 {[%clk 0:02:55.3]} 6. a4 {[%clk 0:02:57.9]} 6... Be7 {[%clk 0:02:55.4]}
7. Bc4 {[%clk 0:02:57.9]} 7... O-O {[%clk 0:02:54.2]} 8. Ba2 {[%clk 0:02:58]}
8... a5 {[%clk 0:02:52.1]} 9. O-O {[%clk 0:02:58.3]} 9... b6 {[%clk 0:02:50.5]}
10. Re1 {[%clk 0:02:57.7]} 10... Na6 {[%clk 0:02:47.2]} 11. dxe5 {[%clk
0:02:52.9]} 11... dxe5 {[%clk 0:02:46.7]} 12. Nh4 {[%clk 0:02:52.9]} 12... Nb4
{[%clk 0:02:45.7]} 13. Bb3 {[%clk 0:02:52.3]} 13... Be6 {[%clk 0:02:33.5]} 14.
Bxe6 {[%clk 0:02:35.6]} 14... fxe6 {[%clk 0:02:34.4]} 15. Qe2 {[%clk 0:02:25.5]}
15... Rad8 {[%clk 0:02:32]} 16. Nf3 {[%clk 0:02:16.4]} 16... Nh5 {[%clk
0:02:22.9]} 17. Be3 {[%clk 0:01:59.5]} 17... Nf4 {[%clk 0:02:20.5]} 18. Bxf4
{[%clk 0:01:58.3]} 18... exf4 {[%clk 0:02:08.4]} 19. Rad1 {[%clk 0:01:51.7]}
19... e5 {[%clk 0:02:02.4]} 20. Qc4+ {[%clk 0:01:45.7]} 20... Kh8 {[%clk
0:02:01.4]} 21. Ne2 {[%clk 0:01:43.4]} 21... Rd7 {[%clk 0:01:40.1]} 22. Rxd7
{[%clk 0:01:31.2]} 22... Qxd7 {[%clk 0:01:41]} 23. Nxe5 {[%clk 0:01:30.8]} 23...
Qd2 {[%clk 0:01:39]} 24. Rc1 {[%clk 0:01:07.1]} 24... h6 {[%clk 0:01:37.6]} 25.
Ng6+ {[%clk 0:01:04.3]} 1-0

[Event "Late-Titled-Tuesday-Blitz-April-16-2024"]
[Site "Chess.com"]
[Date "2024.04.16"]
[Round "1"]
[White "SantoBlue"]
[Black "Ykow"]
[Result "1-0"]
[WhiteElo "3016"]
[BlackElo "2515"]
[TimeControl "180+1"]
[EndTime "14:04:29 PDT"]
[Termination "SantoBlue won by resignation"]

1. d4 {[%clk 0:02:48]} 1... d5 {[%clk 0:03:00.2]} 2. c4 {[%clk 0:02:47.9]} 2...
e5 {[%clk 0:03:00.6]} 3. dxe5 {[%clk 0:02:47.3]} 3... d4 {[%clk 0:03:01.5]} 4.
a3 {[%clk 0:02:47.4]} 4... Nc6 {[%clk 0:03:02]} 5. Nf3 {[%clk 0:02:47.4]} 5...
Nge7 {[%clk 0:03:00.8]} 6. Bf4 {[%clk 0:02:38.2]} 6... Ng6 {[%clk 0:02:58.5]} 7.
Bg3 {[%clk 0:02:38.8]} 7... a5 {[%clk 0:02:55]} 8. Nbd2 {[%clk 0:02:38.9]} 8...
a4 {[%clk 0:02:39.5]} 9. h4 {[%clk 0:02:36.2]} 9... Ra5 {[%clk 0:02:35.5]} 10.
h5 {[%clk 0:02:33.9]} 10... Nge7 {[%clk 0:02:35.4]} 11. Bf4 {[%clk 0:02:30.6]}
11... Qd7 {[%clk 0:02:19.4]} 12. g3 {[%clk 0:02:29.7]} 12... h6 {[%clk
0:02:10.3]} 13. Bg2 {[%clk 0:02:29.4]} 13... d3 {[%clk 0:02:00.1]} 14. O-O
{[%clk 0:02:28.5]} 14... dxe2 {[%clk 0:01:53]} 15. Qxe2 {[%clk 0:02:29.4]} 15...
Qg4 {[%clk 0:01:52.9]} 16. b4 {[%clk 0:02:23.8]} 16... axb3 {[%clk 0:01:52.3]}
17. Nxb3 {[%clk 0:02:24.3]} 17... Ra8 {[%clk 0:01:50.4]} 18. Nfd4 {[%clk
0:02:08.2]} 18... Qxe2 {[%clk 0:01:42.7]} 19. Nxe2 {[%clk 0:02:08.1]} 19... Bg4
{[%clk 0:01:37.8]} 20. Nc3 {[%clk 0:02:05.3]} 20... Bxh5 {[%clk 0:01:31.6]} 21.
Nb5 {[%clk 0:02:05.1]} 21... Kd8 {[%clk 0:01:23.2]} 22. Bh3 {[%clk 0:01:45.5]}
22... Ng6 {[%clk 0:00:59.1]} 23. Rad1+ {[%clk 0:01:39]} 23... Bxd1 {[%clk
0:00:58.7]} 24. Rxd1+ {[%clk 0:01:39.9]} 24... Ke7 {[%clk 0:00:59.4]} 25. Rd7+
{[%clk 0:01:38.8]} 1-0

[Event "Late-Titled-Tuesday-Blitz-April-16-2024"]
[Site "Chess.com"]
[Date "2024.04.16"]
[Round "1"]
[White "WoodlandMagic"]
[Black "SHIVACalypso"]
[Result "1-0"]
[WhiteElo "2831"]
[BlackElo "2460"]
[TimeControl "180+1"]
[EndTime "14:04:29 PDT"]
[Termination "WoodlandMagic won by resignation"]

1. c4 {[%clk 0:02:53.3]} 1... c5 {[%clk 0:02:58.3]} 2. Nf3 {[%clk 0:02:49.7]}
2... Nc6 {[%clk 0:02:58.2]} 3. Nc3 {[%clk 0:02:49.1]} 3... g6 {[%clk 0:02:57.6]}
4. e3 {[%clk 0:02:42.2]} 4... Bg7 {[%clk 0:02:52.4]} 5. d4 {[%clk 0:02:41.4]}
5... cxd4 {[%clk 0:02:51.4]} 6. exd4 {[%clk 0:02:41.1]} 6... Nf6 {[%clk
0:02:50.5]} 7. d5 {[%clk 0:02:35.6]} 7... Nb8 {[%clk 0:02:47.4]} 8. Be2 {[%clk
0:02:32.1]} 8... d6 {[%clk 0:02:20]} 9. O-O {[%clk 0:02:31.1]} 9... Nbd7 {[%clk
0:02:19.2]} 10. h3 {[%clk 0:02:28.6]} 10... O-O {[%clk 0:02:17.9]} 11. Be3
{[%clk 0:02:29.2]} 11... b6 {[%clk 0:02:11.9]} 12. Nd4 {[%clk 0:02:28.1]} 12...
Bb7 {[%clk 0:02:11.4]} 13. Re1 {[%clk 0:02:23.9]} 13... Rc8 {[%clk 0:02:10.4]}
14. Rc1 {[%clk 0:02:22.4]} 14... Ne5 {[%clk 0:02:04.7]} 15. b3 {[%clk
0:02:22.2]} 15... a6 {[%clk 0:01:59.5]} 16. a4 {[%clk 0:02:20]} 16... Nfd7
{[%clk 0:01:56.5]} 17. f4 {[%clk 0:02:18.8]} 17... Nc5 {[%clk 0:01:53]} 18. fxe5
{[%clk 0:02:17.4]} 18... dxe5 {[%clk 0:01:53.9]} 19. Nf3 {[%clk 0:01:53.9]}
19... f5 {[%clk 0:01:45.9]} 20. Ng5 {[%clk 0:01:49.2]} 20... Qd6 {[%clk
0:01:41]} 21. b4 {[%clk 0:01:45.3]} 21... Nd7 {[%clk 0:01:35]} 22. Ne6 {[%clk
0:01:45.7]} 22... f4 {[%clk 0:01:33.6]} 23. Bf2 {[%clk 0:01:44]} 23... Nf6
{[%clk 0:01:31]} 24. Nxf8 {[%clk 0:01:43]} 24... Rxf8 {[%clk 0:01:30.3]} 25. c5
{[%clk 0:01:42.8]} 25... Qd8 {[%clk 0:01:28.6]} 26. Bc4 {[%clk 0:01:41.1]} 26...
Kh8 {[%clk 0:01:24.8]} 27. Rxe5 {[%clk 0:01:38.1]} 1-0

[Event "Late-Titled-Tuesday-Blitz-April-16-2024"]
[Site "Chess.com"]
[Date "2024.04.16"]
[Round "1"]
[White "GothamChess"]
[Black "Godzillator"]
[Result "1-0"]
[WhiteElo "2682"]
[BlackElo "2378"]
[TimeControl "180+1"]
[EndTime "14:04:30 PDT"]
[Termination "GothamChess won by resignation"]

1. e4 {[%clk 0:02:59.2]} 1... d5 {[%clk 0:03:00.1]} 2. exd5 {[%clk 0:02:55.2]}
2... Qxd5 {[%clk 0:03:01]} 3. h3 {[%clk 0:02:55.6]} 3... c6 {[%clk 0:02:58.2]}
4. d4 {[%clk 0:02:52.5]} 4... Bf5 {[%clk 0:02:57.2]} 5. Nf3 {[%clk 0:02:52.2]}
5... Nf6 {[%clk 0:02:56.6]} 6. c4 {[%clk 0:02:51.9]} 6... Qd6 {[%clk 0:02:55.8]}
7. g4 {[%clk 0:02:48.6]} 7... Be4 {[%clk 0:02:54.6]} 8. Bg2 {[%clk 0:02:48.6]}
8... Nbd7 {[%clk 0:02:52.2]} 9. Nc3 {[%clk 0:02:47.4]} 9... Bxf3 {[%clk
0:02:49.9]} 10. Bxf3 {[%clk 0:02:47.8]} 10... e6 {[%clk 0:02:50.2]} 11. g5
{[%clk 0:02:45]} 11... Ng8 {[%clk 0:02:49.3]} 12. d5 {[%clk 0:02:33.1]} 12...
exd5 {[%clk 0:02:47.7]} 13. cxd5 {[%clk 0:02:32.2]} 13... c5 {[%clk 0:02:34.6]}
14. Nb5 {[%clk 0:02:20.7]} 14... Qe5+ {[%clk 0:02:33.4]} 15. Qe2 {[%clk
0:02:07]} 15... Kd8 {[%clk 0:02:28]} 16. Be3 {[%clk 0:02:01.3]} 16... a6 {[%clk
0:02:22.4]} 17. Nc3 {[%clk 0:02:00.4]} 17... Ne7 {[%clk 0:02:19.7]} 18. O-O-O
{[%clk 0:01:53.7]} 18... Nf5 {[%clk 0:02:19.4]} 19. Rhe1 {[%clk 0:01:53.6]}
19... Nxe3 {[%clk 0:02:19]} 20. Qxe3 {[%clk 0:01:28]} 20... Qxe3+ {[%clk
0:02:18]} 21. Rxe3 {[%clk 0:01:28.6]} 21... Bd6 {[%clk 0:02:16.8]} 22. Kb1
{[%clk 0:01:28]} 22... Bf4 {[%clk 0:02:15.6]} 23. Re2 {[%clk 0:01:24.6]} 23...
Bxg5 {[%clk 0:02:15.6]} 24. d6 {[%clk 0:01:24.3]} 24... Kc8 {[%clk 0:01:55.2]}
25. Rde1 {[%clk 0:01:23.5]} 25... Rd8 {[%clk 0:01:51.4]} 26. Nd5 {[%clk
0:01:20.6]} 26... b5 {[%clk 0:01:41.4]} 27. Ne7+ {[%clk 0:01:19.7]} 27... Kb8
{[%clk 0:01:36]} 28. Nc6+ {[%clk 0:01:18.9]} 28... Kc8 {[%clk 0:01:31.4]} 29.
Nxd8 {[%clk 0:01:18.5]} 29... Ra7 {[%clk 0:01:31.1]} 30. Nc6 {[%clk 0:01:15]}
1-0

[Event "Late-Titled-Tuesday-Blitz-April-16-2024"]
[Site "Chess.com"]
[Date "2024.04.16"]
[Round "1"]
[White "Eloist"]
[Black "vladislavkovalev"]
[Result "0-1"]
[WhiteElo "2473"]
[BlackElo "2866"]
[TimeControl "180+1"]
[EndTime "14:04:32 PDT"]
[Termination "vladislavkovalev won by resignation"]

1. e4 {[%clk 0:03:00.9]} 1... e5 {[%clk 0:02:59.6]} 2. Bc4 {[%clk 0:03:00]} 2...
Nf6 {[%clk 0:02:59]} 3. d3 {[%clk 0:03:00.4]} 3... c6 {[%clk 0:02:59.4]} 4. Nf3
{[%clk 0:03:00.9]} 4... d5 {[%clk 0:02:59.2]} 5. Bb3 {[%clk 0:03:01.2]} 5... a5
{[%clk 0:02:57.6]} 6. a4 {[%clk 0:02:51.4]} 6... Bd6 {[%clk 0:02:56.7]} 7. Nc3
{[%clk 0:02:40.8]} 7... d4 {[%clk 0:02:54.1]} 8. Ne2 {[%clk 0:02:39.9]} 8... h6
{[%clk 0:02:52.9]} 9. O-O {[%clk 0:02:38.8]} 9... Na6 {[%clk 0:02:52.8]} 10.
Nexd4 {[%clk 0:02:37]} 10... exd4 {[%clk 0:02:52.1]} 11. e5 {[%clk 0:02:37.1]}
11... O-O {[%clk 0:02:52.7]} 12. exd6 {[%clk 0:02:20.2]} 12... Qxd6 {[%clk
0:02:53.6]} 13. Re1 {[%clk 0:02:17.4]} 13... Nc5 {[%clk 0:02:52.3]} 14. Bc4
{[%clk 0:02:07]} 14... Bg4 {[%clk 0:02:46.5]} 15. h3 {[%clk 0:02:04.5]} 15...
Bh5 {[%clk 0:02:46.7]} 16. g4 {[%clk 0:02:00.4]} 16... Nxg4 {[%clk 0:02:46.8]}
17. hxg4 {[%clk 0:01:56.1]} 17... Bxg4 {[%clk 0:02:47.7]} 18. Kg2 {[%clk
0:01:51.1]} 18... Rae8 {[%clk 0:02:47.9]} 19. Bd2 {[%clk 0:01:41.6]} 19... Qf6
{[%clk 0:02:42.3]} 20. Bxa5 {[%clk 0:01:33.9]} 20... Rxe1 {[%clk 0:02:39.5]} 21.
Bxe1 {[%clk 0:01:32.4]} 21... Re8 {[%clk 0:02:40.1]} 22. Bb4 {[%clk 0:01:26.4]}
22... Nd7 {[%clk 0:02:34.9]} 23. Bd6 {[%clk 0:00:37]} 23... Qxd6 {[%clk
0:02:24.9]} 24. Qd2 {[%clk 0:00:35.1]} 24... Bxf3+ {[%clk 0:02:12.8]} 25. Kxf3
{[%clk 0:00:34.7]} 25... Ne5+ {[%clk 0:02:13.7]} 26. Kg2 {[%clk 0:00:34]} 26...
Qg6+ {[%clk 0:02:14.4]} 0-1

[Event "Late-Titled-Tuesday-Blitz-April-16-2024"]
[Site "Chess.com"]
[Date "2024.04.16"]
[Round "1"]
[White "steepedgames"]
[Black "Shankland"]
[Result "0-1"]
[WhiteElo "2482"]
[BlackElo "2883"]
[TimeControl "180+1"]
[EndTime "14:04:33 PDT"]
[Termination "Shankland won by resignation"]

1. d4 {[%clk 0:03:00]} 1... d5 {[%clk 0:02:57.9]} 2. Bf4 {[%clk 0:02:59.7]} 2...
c5 {[%clk 0:02:57.5]} 3. c3 {[%clk 0:03:00]} 3... Nc6 {[%clk 0:02:55.8]} 4. e3
{[%clk 0:03:00]} 4... e6 {[%clk 0:02:54.8]} 5. Nd2 {[%clk 0:02:59.2]} 5... Bd6
{[%clk 0:02:54.7]} 6. Bg3 {[%clk 0:02:58.9]} 6... Nf6 {[%clk 0:02:48.6]} 7. Bd3
{[%clk 0:02:58.4]} 7... O-O {[%clk 0:02:47.3]} 8. Ngf3 {[%clk 0:02:56.5]} 8...
b6 {[%clk 0:02:46.4]} 9. O-O {[%clk 0:02:55.9]} 9... Bb7 {[%clk 0:02:46.5]} 10.
Qe2 {[%clk 0:02:54.9]} 10... Qc7 {[%clk 0:02:43.8]} 11. Rfe1 {[%clk 0:02:50.6]}
11... Bxg3 {[%clk 0:02:32.7]} 12. hxg3 {[%clk 0:02:50.3]} 12... e5 {[%clk
0:02:33.3]} 13. dxe5 {[%clk 0:02:48]} 13... Nxe5 {[%clk 0:02:33.2]} 14. Nxe5
{[%clk 0:02:48.3]} 14... Qxe5 {[%clk 0:02:33.3]} 15. e4 {[%clk 0:02:49.2]} 15...
dxe4 {[%clk 0:02:09.3]} 16. Nxe4 {[%clk 0:02:48]} 16... Rad8 {[%clk 0:02:09.9]}
17. Nxf6+ {[%clk 0:02:41.1]} 17... Qxf6 {[%clk 0:02:09.5]} 18. Be4 {[%clk
0:02:41.3]} 18... Rfe8 {[%clk 0:02:00.2]} 19. Qf3 {[%clk 0:02:40.2]} 19... Rxe4
{[%clk 0:01:27]} 20. Rxe4 {[%clk 0:02:33.9]} 20... Qxf3 {[%clk 0:01:27.2]} 21.
gxf3 {[%clk 0:02:30.5]} 21... Bxe4 {[%clk 0:01:27.7]} 22. fxe4 {[%clk
0:02:31.4]} 22... Rd2 {[%clk 0:01:27.7]} 23. b4 {[%clk 0:02:20.1]} 23... cxb4
{[%clk 0:01:25.4]} 24. cxb4 {[%clk 0:02:19.3]} 24... g5 {[%clk 0:01:25.7]} 25.
a4 {[%clk 0:02:09.4]} 25... Rd4 {[%clk 0:01:24.6]} 26. a5 {[%clk 0:02:08.9]}
26... Rxe4 {[%clk 0:01:22.3]} 27. axb6 {[%clk 0:02:08.8]} 27... axb6 {[%clk
0:01:21.8]} 28. b5 {[%clk 0:01:38.8]} 28... Rb4 {[%clk 0:01:20.3]} 0-1

[Event "Late-Titled-Tuesday-Blitz-April-16-2024"]
[Site "Chess.com"]
[Date "2024.04.16"]
[Round "1"]
[White "KVAIDAN"]
[Black "lukas_111111"]
[Result "0-1"]
[WhiteElo "2384"]
[BlackElo "2701"]
[TimeControl "180+1"]
[EndTime "14:04:34 PDT"]
[Termination "lukas_111111 won by resignation"]

1. f4 {[%clk 0:03:00]} 1... Nh6 {[%clk 0:02:57.2]} 2. Nf3 {[%clk 0:02:59.1]}
2... d5 {[%clk 0:02:55]} 3. e3 {[%clk 0:02:57.2]} 3... Bg4 {[%clk 0:02:51.9]} 4.
h3 {[%clk 0:02:54.8]} 4... Bxf3 {[%clk 0:02:51.3]} 5. Qxf3 {[%clk 0:02:54.9]}
5... e6 {[%clk 0:02:47.1]} 6. c4 {[%clk 0:02:53.4]} 6... Nf5 {[%clk 0:02:38]} 7.
g4 {[%clk 0:02:47.2]} 7... Nh4 {[%clk 0:02:31.3]} 8. Qf2 {[%clk 0:02:45.9]} 8...
Nc6 {[%clk 0:02:20.3]} 9. cxd5 {[%clk 0:02:41.2]} 9... Qxd5 {[%clk 0:02:18.3]}
10. Qxh4 {[%clk 0:02:31.5]} 10... Qxh1 {[%clk 0:02:17.2]} 11. Kf2 {[%clk
0:02:22.9]} 11... Be7 {[%clk 0:02:09.8]} 12. Qg3 {[%clk 0:02:22.2]} 12... h5
{[%clk 0:02:01.9]} 13. g5 {[%clk 0:02:18.2]} 13... h4 {[%clk 0:02:00.8]} 14. Qg4
{[%clk 0:02:18.1]} 14... Qh2+ {[%clk 0:01:54.2]} 15. Bg2 {[%clk 0:02:16.8]}
15... O-O-O {[%clk 0:01:51]} 16. Nc3 {[%clk 0:02:15.3]} 16... Kb8 {[%clk
0:01:50.4]} 17. d4 {[%clk 0:02:10.5]} 17... f5 {[%clk 0:01:46]} 18. Qd1 {[%clk
0:02:04.6]} 18... Qg3+ {[%clk 0:01:45.3]} 19. Kf1 {[%clk 0:02:04.4]} 19... e5
{[%clk 0:01:43.7]} 20. Ne2 {[%clk 0:01:36.5]} 20... Qh2 {[%clk 0:01:40.8]} 21.
Bxc6 {[%clk 0:01:32.9]} 21... bxc6 {[%clk 0:01:39.4]} 22. Qb3+ {[%clk
0:01:32.9]} 22... Ka8 {[%clk 0:01:39.3]} 23. dxe5 {[%clk 0:01:15.6]} 23... Qxh3+
{[%clk 0:01:37.5]} 24. Kf2 {[%clk 0:01:14.9]} 24... Qh2+ {[%clk 0:01:36]} 25.
Kf1 {[%clk 0:01:14.8]} 25... h3 {[%clk 0:01:35.8]} 26. Qc2 {[%clk 0:01:08.8]}
26... Qg2+ {[%clk 0:01:34.7]} 27. Ke1 {[%clk 0:01:08.8]} 27... h2 {[%clk
0:01:35]} 0-1

[Event "Late-Titled-Tuesday-Blitz-April-16-2024"]
[Site "Chess.com"]
[Date "2024.04.16"]
[Round "1"]
[White "Balla_Tamas"]
[Black "Aragon"]
[Result "1-0"]
[WhiteElo "2545"]
[BlackElo "2066"]
[TimeControl "180+1"]
[EndTime "14:04:41 PDT"]
[Termination "Balla_Tamas won by resignation"]

1. Nf3 {[%clk 0:03:00]} 1... b5 {[%clk 0:02:55.9]} 2. e4 {[%clk 0:02:54.7]} 2...
a6 {[%clk 0:02:55.2]} 3. d4 {[%clk 0:02:45.8]} 3... Bb7 {[%clk 0:02:54.4]} 4.
Bd3 {[%clk 0:02:44.7]} 4... e6 {[%clk 0:02:54.2]} 5. c3 {[%clk 0:02:44.5]} 5...
Nf6 {[%clk 0:02:54.3]} 6. Qe2 {[%clk 0:02:43.7]} 6... d5 {[%clk 0:02:52.6]} 7.
e5 {[%clk 0:02:43.5]} 7... Nfd7 {[%clk 0:02:51.6]} 8. O-O {[%clk 0:02:43.2]}
8... c5 {[%clk 0:02:50.4]} 9. Bg5 {[%clk 0:02:41.2]} 9... Qb6 {[%clk 0:02:44.6]}
10. Nbd2 {[%clk 0:02:39.2]} 10... Nc6 {[%clk 0:02:41.6]} 11. Rac1 {[%clk
0:02:29.9]} 11... cxd4 {[%clk 0:02:32.9]} 12. cxd4 {[%clk 0:02:30]} 12... Nxd4
{[%clk 0:02:31.9]} 13. Nxd4 {[%clk 0:02:29.7]} 13... Qxd4 {[%clk 0:02:31.7]} 14.
Nf3 {[%clk 0:02:30.3]} 14... Qb6 {[%clk 0:02:29.2]} 15. a3 {[%clk 0:02:26.2]}
15... h6 {[%clk 0:02:26]} 16. Bh4 {[%clk 0:02:26.2]} 16... Bc5 {[%clk 0:02:09]}
17. b4 {[%clk 0:02:25.8]} 17... Bd4 {[%clk 0:02:08.8]} 18. Bb1 {[%clk 0:02:20]}
18... Rc8 {[%clk 0:01:40.6]} 19. Rxc8+ {[%clk 0:02:16.8]} 19... Bxc8 {[%clk
0:01:40.2]} 20. Rc1 {[%clk 0:02:17.4]} 20... Bb7 {[%clk 0:01:39.7]} 21. Qc2
{[%clk 0:02:13.7]} 21... g5 {[%clk 0:01:28]} 22. Bg3 {[%clk 0:02:09.2]} 22...
Qa7 {[%clk 0:01:21.1]} 23. h3 {[%clk 0:02:01.3]} 23... Bb6 {[%clk 0:01:19.6]}
24. Nd2 {[%clk 0:01:53.3]} 24... Bd4 {[%clk 0:01:12.7]} 25. Nb3 {[%clk 0:01:45]}
25... Bxe5 {[%clk 0:01:07.2]} 26. Bxe5 {[%clk 0:01:45.2]} 26... Nxe5 {[%clk
0:01:07.8]} 27. Qc7 {[%clk 0:01:45.8]} 27... Nd7 {[%clk 0:01:03.9]} 28. Na5
{[%clk 0:01:45.7]} 28... Qb6 {[%clk 0:01:02]} 29. Nxb7 {[%clk 0:01:40.2]} 1-0

[Event "Late-Titled-Tuesday-Blitz-April-16-2024"]
[Site "Chess.com"]
[Date "2024.04.16"]
[Round "1"]
[White "Jospem"]
[Black "sina101"]
[Result "1-0"]
[WhiteElo "3063"]
[BlackElo "2531"]
[TimeControl "180+1"]
[EndTime "14:04:47 PDT"]
[Termination "Jospem won by resignation"]

1. e4 {[%clk 0:03:00.9]} 1... c5 {[%clk 0:02:58.8]} 2. Nf3 {[%clk 0:03:01]} 2...
e6 {[%clk 0:02:58.1]} 3. c3 {[%clk 0:03:01.1]} 3... Nf6 {[%clk 0:02:57.1]} 4.
Bd3 {[%clk 0:03:00.7]} 4... d5 {[%clk 0:02:54.5]} 5. e5 {[%clk 0:03:00.9]} 5...
Nfd7 {[%clk 0:02:54.7]} 6. Bc2 {[%clk 0:03:01.8]} 6... Nc6 {[%clk 0:02:52.5]} 7.
d4 {[%clk 0:02:59.9]} 7... cxd4 {[%clk 0:02:49.1]} 8. cxd4 {[%clk 0:03:00.8]}
8... Be7 {[%clk 0:02:41.3]} 9. Nc3 {[%clk 0:03:00.7]} 9... O-O {[%clk
0:02:40.7]} 10. O-O {[%clk 0:03:00.7]} 10... f6 {[%clk 0:02:32.6]} 11. exf6
{[%clk 0:03:01.6]} 11... Nxf6 {[%clk 0:02:22.8]} 12. Re1 {[%clk 0:03:00.5]}
12... Bd6 {[%clk 0:02:17.5]} 13. a3 {[%clk 0:02:56.4]} 13... a6 {[%clk
0:02:12.4]} 14. Qd3 {[%clk 0:02:43.6]} 14... Ne7 {[%clk 0:01:50.3]} 15. Bg5
{[%clk 0:02:36.4]} 15... Ng6 {[%clk 0:01:46.1]} 16. h4 {[%clk 0:02:34.2]} 16...
Rf7 {[%clk 0:01:38.7]} 17. Ne5 {[%clk 0:02:31.2]} 17... Nf8 {[%clk 0:01:01.2]}
18. Nxf7 {[%clk 0:02:30.2]} 18... Kxf7 {[%clk 0:01:02.1]} 19. Re3 {[%clk
0:02:27.6]} 19... Bd7 {[%clk 0:00:52.2]} 20. Rae1 {[%clk 0:02:26.4]} 20... Qc7
{[%clk 0:00:47.3]} 21. Rf3 {[%clk 0:02:25.3]} 21... Re8 {[%clk 0:00:42.2]} 22.
h5 {[%clk 0:02:23.5]} 22... h6 {[%clk 0:00:36]} 23. Bxf6 {[%clk 0:02:23.5]}
23... gxf6 {[%clk 0:00:36.9]} 24. Qd2 {[%clk 0:02:23.3]} 24... Kg7 {[%clk
0:00:29.4]} 25. Ree3 {[%clk 0:02:23.3]} 25... Nh7 {[%clk 0:00:21.6]} 26. Bxh7
{[%clk 0:02:20.7]} 26... Kxh7 {[%clk 0:00:21.6]} 27. Rxf6 {[%clk 0:02:20.4]}
27... Bf4 {[%clk 0:00:17.8]} 28. Qd3+ {[%clk 0:02:20.1]} 28... Kh8 {[%clk
0:00:17.1]} 29. Rf3 {[%clk 0:02:19.7]} 29... Bg5 {[%clk 0:00:14.5]} 30. Rf7
{[%clk 0:02:20.3]} 1-0

[Event "Late-Titled-Tuesday-Blitz-April-16-2024"]
[Site "Chess.com"]
[Date "2024.04.16"]
[Round "1"]
[White "ural58"]
[Black "artin10862"]
[Result "0-1"]
[WhiteElo "2500"]
[BlackElo "2938"]
[TimeControl "180+1"]
[EndTime "14:04:55 PDT"]
[Termination "artin10862 won by resignation"]

1. e4 {[%clk 0:02:54]} 1... c5 {[%clk 0:02:54.1]} 2. b3 {[%clk 0:02:53.4]} 2...
b6 {[%clk 0:02:51.7]} 3. d4 {[%clk 0:02:52.2]} 3... cxd4 {[%clk 0:02:51.5]} 4.
Qxd4 {[%clk 0:02:52.1]} 4... Nc6 {[%clk 0:02:50.8]} 5. Qd2 {[%clk 0:02:51.5]}
5... Nf6 {[%clk 0:02:51.1]} 6. Nc3 {[%clk 0:02:50.7]} 6... g6 {[%clk 0:02:51.1]}
7. Nf3 {[%clk 0:02:48.7]} 7... Bg7 {[%clk 0:02:51.2]} 8. Bb2 {[%clk 0:02:46.1]}
8... Nxe4 {[%clk 0:02:49.4]} 9. Nxe4 {[%clk 0:02:38.1]} 9... Bxb2 {[%clk
0:02:50.3]} 10. Rd1 {[%clk 0:02:35.3]} 10... Bg7 {[%clk 0:02:41.5]} 11. Bb5
{[%clk 0:02:34.8]} 11... Qc7 {[%clk 0:02:38.8]} 12. O-O {[%clk 0:02:27.2]} 12...
O-O {[%clk 0:02:38.2]} 13. Rfe1 {[%clk 0:02:27.2]} 13... a6 {[%clk 0:02:31]} 14.
Bf1 {[%clk 0:02:22.1]} 14... d6 {[%clk 0:02:20.8]} 15. c4 {[%clk 0:02:20.5]}
15... Bb7 {[%clk 0:02:17]} 16. Nc3 {[%clk 0:02:15.5]} 16... e6 {[%clk
0:02:16.7]} 17. h4 {[%clk 0:02:14.7]} 17... Rad8 {[%clk 0:02:14.6]} 18. h5
{[%clk 0:02:14.4]} 18... Ne5 {[%clk 0:02:10]} 19. Ng5 {[%clk 0:02:06.4]} 19...
d5 {[%clk 0:02:06.1]} 20. hxg6 {[%clk 0:02:04.1]} 20... hxg6 {[%clk 0:02:04.6]}
21. cxd5 {[%clk 0:02:02.8]} 21... Ng4 {[%clk 0:02:04.3]} 22. d6 {[%clk
0:01:28.4]} 22... Qxc3 {[%clk 0:02:01.8]} 23. Qf4 {[%clk 0:01:28.2]} 23... Nf6
{[%clk 0:01:55]} 24. Re3 {[%clk 0:01:27.8]} 24... Qc2 {[%clk 0:01:47.4]} 25.
Red3 {[%clk 0:01:12.6]} 25... Qc5 {[%clk 0:01:40.9]} 26. Qh4 {[%clk 0:01:05.4]}
26... Qf5 {[%clk 0:01:33.7]} 27. Rh3 {[%clk 0:01:02.7]} 27... Qg4 {[%clk
0:01:33.3]} 0-1

[Event "Late-Titled-Tuesday-Blitz-April-16-2024"]
[Site "Chess.com"]
[Date "2024.04.16"]
[Round "1"]
[White "Oleksandr_Bortnyk"]
[Black "dosto07"]
[Result "1-0"]
[WhiteElo "3057"]
[BlackElo "2525"]
[TimeControl "180+1"]
[EndTime "14:05:01 PDT"]
[Termination "Oleksandr_Bortnyk won by resignation"]

1. e4 {[%clk 0:02:58.3]} 1... e5 {[%clk 0:03:00.2]} 2. Bc4 {[%clk 0:02:53.7]}
2... Nc6 {[%clk 0:02:59.6]} 3. d3 {[%clk 0:02:53.8]} 3... Bc5 {[%clk 0:02:59.4]}
4. Nc3 {[%clk 0:02:53.6]} 4... Nf6 {[%clk 0:02:58.9]} 5. Bg5 {[%clk 0:02:53.1]}
5... d6 {[%clk 0:02:57.2]} 6. Nd5 {[%clk 0:02:49.8]} 6... Na5 {[%clk 0:02:56.5]}
7. Qf3 {[%clk 0:02:27.1]} 7... c6 {[%clk 0:02:08.6]} 8. Nxf6+ {[%clk 0:02:08]}
8... gxf6 {[%clk 0:02:08.6]} 9. Bxf6 {[%clk 0:02:08.9]} 9... Qb6 {[%clk
0:02:08.1]} 10. Bxf7+ {[%clk 0:02:04.1]} 10... Kxf7 {[%clk 0:02:05.2]} 11. Bd8+
{[%clk 0:01:38.5]} 11... Ke8 {[%clk 0:02:04.9]} 12. Bxb6 {[%clk 0:01:38.8]}
12... axb6 {[%clk 0:02:01.2]} 13. a3 {[%clk 0:01:31.8]} 13... Be6 {[%clk
0:01:52.1]} 14. Qh5+ {[%clk 0:01:29.4]} 14... Bf7 {[%clk 0:01:50.4]} 15. Qh6
{[%clk 0:01:22.4]} 15... b5 {[%clk 0:01:38]} 16. Nf3 {[%clk 0:01:19.9]} 16...
Rg8 {[%clk 0:01:28.8]} 17. b4 {[%clk 0:01:17.5]} 17... Bb6 {[%clk 0:01:22.4]}
18. bxa5 {[%clk 0:01:16.2]} 18... Bxa5+ {[%clk 0:01:22.8]} 19. Ke2 {[%clk
0:01:11.4]} 19... Bc3 {[%clk 0:01:23.3]} 20. Qxd6 {[%clk 0:01:09.5]} 20... Bxa1
{[%clk 0:01:22.4]} 21. Rxa1 {[%clk 0:01:10.4]} 21... Rxg2 {[%clk 0:01:14.4]} 22.
Nxe5 {[%clk 0:01:08.9]} 22... Bh5+ {[%clk 0:01:12.8]} 23. Ke3 {[%clk 0:01:08.8]}
23... Rg7 {[%clk 0:01:09.5]} 24. Qe6+ {[%clk 0:01:08.4]} 24... Kd8 {[%clk
0:01:06.7]} 25. Qf6+ {[%clk 0:01:08.2]} 25... Re7 {[%clk 0:01:04.9]} 26. Rg1
{[%clk 0:01:07.8]} 1-0